{"text_format":"3","workbook":"xlsx","n_sheets":1,"sheets":["PRICING SCHEDULE"],"not_rendered":{"images":1,"defined_names":2},"read":"whole","date_system":"1900"}

{"sheet":"PRICING SCHEDULE","index":0,"n_rows":41,"n_cols":13,"rows_kept":41,"merged":[[11,4,11,6],[31,1,34,1],[31,2,31,5],[31,6,31,7],[32,2,32,5],[32,6,32,7],[33,2,33,5],[33,6,33,7],[34,2,34,5],[34,6,34,7]]}
[null,"SUPPLY CHAIN MANAGEMENT"]
[null,"Pricing schedule "]
["RFQ No","4701-AH-2022"]
["RFQ Title","PROVISION OF CLEANING AND HYGIENE SERVICES FOR SITA BLOEMFONTEIN OFFICE FOR A PERIOD OF 36 MONTHS"]
["Bidder Name "]
[]
["1. INSTRUCTION FOR COMPLETING THE PRICING SCHEDULE"]
["(a)  Bidder must complete/enter YELLOW cells only"]
["(b)  Unit and Line prices must be VAT EXCLUSIVE and in South African Rand (ZAR) currency."]
["(c) The price must include all cost to deliver the goods or render the service, including all applicable taxes, duty fees, logistics/delivery, storage, labour, overtime and subsistance and travel"]
[]
[]
["Item No","Goods/Service description","Unit of measure","Forex %","Qty ","Unit/Monthly Price Y1\n(Excl VAT","Line/Annual Price Y1","Unit/Monthly Price Y2\n(Excl VAT)","Line/Annual Price Y2","Unit/Monthly Price Y3\n(Excl VAT)","Line/Annual Price Y3","TOTAL CONTRACT VALUE"]
[1,"SITA BLOEMFONTEIN - CLEANING & HYGIENE SERVICES\n AND CONSUMABLES & EQUIPMENT",{"$nulls":4},{"$f":"SUBTOTAL(9,G15:G24)","v":0},null,{"$f":"SUBTOTAL(9,I15:I24)","v":0},null,{"$f":"SUBTOTAL(9,K15:K24)","v":0},{"$f":"SUBTOTAL(9,L15:L24)","v":0}]
["1.1","Female Cleaner (Day Shift 08:00 to 16:00)","No. of Person","n/a",1,null,{"$f":"(E15*F15)*12","v":0},null,{"$f":"(E15*H15)*12","v":0},null,{"$f":"(E15*J15)*12","v":0},{"$f":"G15+I15+K15","v":0}]
["1.2","Supply of monthly cleaning and hygiene consumables/material","Item","n/a",1,null,0,{"$f":"F16*7%+F16","v":0},0,{"$f":"H16*7%+H16","v":0},0,{"$f":"G16+I16+K16","v":0}]
["1.3","Deep cleaning of toilets twice a month","Item","n/a",1,null,0,0,0,0,0,0]
["1.4","Deep cleaning of carperts and couches (Quarterly)","Item","n/a",1,null,0,0,0,0,0,0]
["1.5","Deep Cleaning of Chairs / couches (Bi-Annually)","Item","n/a",1,null,0,0,0,0,0,0]
["1.6","Sanitary Bin Service/ waste removal (Bi-Weekly)","Item","n/a",1,null,0,0,0,0,0,0]
["1.7","Hygiene Dispensers/ equipment/ sanitary bins - Once off supply & installation)\ni.WALL WASTE BIN\tx2\nii.\tTOUCH FREE HAND PAPER TOWEL CABINET  \t x2 \niii.\tSHE PACKET DISPENSER \tx3\niv.\tFOAM SOAP DISPENSER \tx2\nv.\tSEAT SANITIZER DISPENSER \tx2 \nvi.\tSANITARY BIN x\t3\nvii.\tHAND SANITISER DISPENSER x\t2","Item","n/a",1,null,{"$f":"(E21*F21)*12","v":0},null,null,{"$f":"H21*7%+H21","v":0},{"$f":"(E21*J21)*12","v":0},null,"only applicable on year 1"]
["1.8","Hygiene Dispensers/ equipment/ sanitary bins maintenance \ni.WALL WASTE BIN\tx2\nii.\tTOUCH FREE HAND PAPER TOWEL CABINET  \t x2 \niii.\tSHE PACKET DISPENSER \tx3\niv.\tFOAM SOAP DISPENSER \tx2\nv.\tSEAT SANITIZER DISPENSER \tx2 \nvi.\tSANITARY BIN x\t3\nvii.\tHAND SANITISER DISPENSER x\t2","Item","n/a",1,null,0,0,0,0,0,0]
[]
[]
[{"$nulls":9},0]
[]
[null,"TOTAL BID PRICE  (EXCL VAT)",{"$nulls":4},{"$f":"SUBTOTAL(9,G14:G26)","v":0},null,{"$f":"SUBTOTAL(9,I14:I26)","v":0},null,{"$f":"SUBTOTAL(9,K14:K26)","v":0},{"$f":"SUBTOTAL(9,L14:L26)","v":0}]
[null,"VAT (@15%)",{"$nulls":4},{"$f":"G27*0.15","v":0},null,{"$f":"I27*0.15","v":0},null,{"$f":"K27*0.15","v":0},{"$f":"L27*0.15","v":0}]
[null,"TOTAL  BID PRICE (INCL VAT)",{"$nulls":4},{"$f":"G27+G28","v":0},null,{"$f":"I27+I28","v":0},null,{"$f":"K27+K28","v":0},{"$f":"L27+L28","v":0}]
[]
[]
[null,"I, the bidder, confirm that the price(s) and rate(s) quoted cover all the goods and/or works specified in the bidding documents; that the price(s) or rate(s) cover all my obligations and I accept that any mistakes regarding price(s), rate(s) or calculations will be at my own risk.\n[Note: First convert to PDF, then add signature]"]
[null,null,"Name",{"$nulls":3},"Capacity"]
[]
[null,null,"Signature (above)",{"$nulls":3},"Date"]
[]
[null,"Supply of monthly cleaning and hygiene consumables"]
[null,"Supply (Once off) of cleaning and hygiene equipment & tools"]
[null,"Maintenance of Cleaning and hygiene equipment &  tools  "]
[null,"Suppy and  Installation  (once off) of  hygiene dispensers/units and sanitary bins:\n\ni.\t"]
[null,"Maintenance/Service of hygiene dispensers/units and sanitary bins:\ni.\tWALL WASTE BIN\t x2\nii.\tTOUCH FREE HAND PAPER TOWEL CABINET  \tx2 \niii.\tSHE PACKET DISPENSER\tx3\niv.\tFOAM SOAP DISPENSER\tx2\nv.\tSEAT SANITIZER DISPENSER\tx2 \nvi.\tSANITARY BIN x\t3\nvii.\tHAND SANITISER DISPENSER  x\t2"]